fUSD/lending_fUSD_20240629
["ID","MTS","AMOUNT","RATE_DAILY","PERIOD"]
[330664206,1719697876201,-500.0,0.00013917,3]
[330664207,1719697876211,-500.0,0.00013917,3]
[330664208,1719697876221,-1232.85,0.00013917,3]
[330664209,1719697876230,-538.92,0.00013917,3]
[330664210,1719697876239,-6017.33,0.00013917,3]
[330664211,1719697876248,-1164.17,0.00013917,3]
[330664212,1719697876258,-702.28,0.00013917,3]
[330664213,1719697876267,-500.0,0.00013917,3]
[330664214,1719697876277,-6371.13,0.00013917,3]
[330664215,1719697876286,-1495.82,0.00013917,3]
[330664216,1719697876295,-151.0,0.00013917,2]
[330664217,1719697876305,-224.614127,0.00013917,2]
[330664218,1719697876314,-1005.1,0.00013917,3]
[330664219,1719697876324,-500.0,0.00013917,3]
[330664220,1719697876333,-545.13,0.00013917,3]
[330664221,1719697876342,-996.78,0.00013917,3]
[330664222,1719697876351,-736.29,0.00013917,3]
[330664223,1719697876360,-3151.93,0.00013917,3]
[330664224,1719697876369,-332.11,0.00013917,3]
[330664225,1719697876384,-576.0,0.00013918,2]
[330664226,1719697876393,-5828.0,0.00013918,2]
[330664227,1719697876401,-382.20092064,0.00013927,2]
[330664228,1719697876411,-157.65373047,0.00013927,2]
[330664229,1719697876421,-308.03328619,0.00013989,2]
[330664230,1719697876430,-470.23,0.00013999,2]
[330664231,1719697876440,-500.0,0.00013999,2]
[330664232,1719697876450,-500.0,0.00013999,2]
[330664233,1719697876462,-500.0,0.00013999,2]
[330664234,1719697876471,-500.0,0.00013999,2]
[330664235,1719697876481,-500.0,0.00013999,2]
[330664236,1719697876491,-347.97962475,0.00013999,2]
[330664237,1719697876500,-1289235.13372688,0.00014,2]
[330664238,1719697876509,-482680.47064636,0.00014,2]
[330664239,1719697876518,-224614.03246561,0.00014,2]
[330664240,1719697876527,-3310.0,0.00014,2]
[330664241,1719697876537,-14953.2948686,0.00014007,2]
[330664242,1719697876547,-2074.03,0.00014027,3]
[330664243,1719697876556,-6680.53,0.00014027,3]
[330664244,1719697876565,-3955.67,0.00014027,3]
[330664245,1719697876574,-2829.49,0.00014027,3]
[330664246,1719697876584,-2444.54,0.00014027,3]
[330664247,1719697876593,-1698.62,0.00014027,3]
[330664248,1719697876602,-1375.34,0.00014027,3]
[330664249,1719697876611,-3508.71,0.00014027,3]
[330664250,1719697876620,-3766.12,0.00014027,3]
[330664251,1719697876629,-4127.7,0.00014027,3]
[330664252,1719697876639,-2752.9,0.00014027,3]
[330664253,1719697876648,-3856.66,0.00014027,3]
[330664254,1719697876658,-2718.08,0.00014027,3]
[330664255,1719697876668,-4618.86,0.00014027,3]
[330664256,1719697876677,-8596.57,0.00014027,3]
[330664257,1719697876687,-9388.9,0.00014027,3]
[330664258,1719697876696,-2782.53,0.00014027,3]
[330664259,1719697876705,-3679.01,0.00014027,3]
[330664260,1719697876714,-10798.79,0.00014027,3]
[330664261,1719697876724,-1708.01,0.00014027,3]
[330664262,1719697876734,-693.37,0.00014027,3]
[330664263,1719697876743,-500.0,0.00014027,3]
[330664264,1719697876753,-2836.27,0.00014027,3]
[330664265,1719697876762,-500.0,0.00014027,3]
[330664266,1719697876771,-876.04,0.00014027,3]
[330664267,1719697876781,-520.9,0.00014027,3]
[330664268,1719697876790,-500.0,0.00014027,3]
[330664269,1719697876800,-525.4,0.00014027,3]
[330664270,1719697876809,-500.0,0.00014027,3]
[330664271,1719697876819,-2888.38,0.00014027,3]
[330664272,1719697876828,-500.0,0.00014027,3]
[330664273,1719697876837,-500.0,0.00014027,3]
[330664274,1719697876847,-799.65,0.00014027,3]
[330664275,1719697876857,-1213.94,0.00014027,3]
[330664276,1719697876866,-500.0,0.00014027,3]
[330664277,1719697876875,-500.0,0.00014027,3]
[330664278,1719697877000,-913.57,0.00014027,3]
[330664279,1719697877010,-500.0,0.00014027,3]
[330664280,1719697877019,-500.0,0.00014027,3]
[330664281,1719697877029,-521.95,0.00014027,3]
[330664282,1719697877041,-500.0,0.00014027,3]
[330664283,1719697877051,-500.0,0.00014027,3]
[330664284,1719697877060,-1326.28,0.00014027,3]
[330664285,1719697877070,-992.84,0.00014027,3]
[330664286,1719697877079,-712.38,0.00014027,3]
[330664287,1719697877089,-1192.62,0.00014027,3]
[330664288,1719697877099,-685.54,0.00014027,3]
[330664289,1719697877108,-500.0,0.00014027,3]
[330664290,1719697877121,-1171.75,0.00014027,3]
[330664291,1719697877131,-913.12,0.00014027,3]
[330664292,1719697877141,-500.0,0.00014027,3]
[330664293,1719697877150,-500.0,0.00014027,3]
[330664294,1719697877160,-1113.91,0.00014027,3]
[330664295,1719697877169,-290.28915382,0.00014027,3]
[330664296,1719697877179,-500.0,0.00014027,3]
[330664297,1719697877189,-514.5,0.00014027,3]
[330664298,1719697877199,-500.0,0.00014027,3]
[330664299,1719697877209,-500.0,0.00014027,3]
[330664300,1719697877218,-500.0,0.00014027,3]
[330664301,1719697877228,-500.0,0.00014027,3]
[330664302,1719697877238,-577.51,0.00014027,3]
[330664303,1719697877248,-2797.19,0.00014027,3]
[330664304,1719697877257,-500.0,0.00014027,3]
[330664305,1719697877267,-500.0,0.00014027,3]
[330664306,1719697877276,-710.19,0.00014027,3]
[330664307,1719697877285,-500.0,0.00014027,3]
[330664308,1719697877295,-526.63,0.00014027,3]
[330664309,1719697877304,-500.0,0.00014027,3]
[330664310,1719697877313,-500.0,0.00014027,3]
[330664311,1719697877323,-500.0,0.00014027,3]
[330664312,1719697877332,-745.32,0.00014027,3]
[330664313,1719697877342,-500.0,0.00014027,3]
[330664314,1719697877354,-535.82,0.00014027,3]
[330664315,1719697877363,-500.0,0.00014027,3]
[330664316,1719697877372,-618.16,0.00014027,3]
[330664317,1719697877385,-520.19,0.00014027,3]
[330664318,1719697877395,-526.68,0.00014027,3]
[330664319,1719697877404,-500.0,0.00014027,3]
[330664320,1719697877414,-845.79,0.00014027,3]
[330664321,1719697877423,-453.09592097,0.00014027,3]
[330664322,1719697877433,-558.47,0.00014027,3]
[330664323,1719697877443,-590.44,0.00014027,3]
[330664324,1719697877455,-500.0,0.00014027,3]
[330664325,1719697877464,-500.0,0.00014027,3]
[330664326,1719697877474,-500.0,0.00014027,3]
[330664327,1719697877484,-1057.71,0.00014027,3]
[330664328,1719697877494,-870.06,0.00014027,3]
[330664329,1719697877503,-2288.97,0.00014027,3]
[330664330,1719697877513,-500.0,0.00014027,3]
[330664331,1719697877522,-1030.74,0.00014027,3]
[330664332,1719697877532,-500.0,0.00014027,3]
[330664333,1719697877541,-588.45,0.00014027,3]
[330664334,1719697877551,-500.0,0.00014027,3]
[330664335,1719697877561,-513.85,0.00014027,3]
[330664336,1719697877572,-500.0,0.00014027,3]
[330664337,1719697877582,-836.96,0.00014027,3]
[330664338,1719697877592,-1133.19,0.00014027,3]
[330664339,1719697877602,-500.0,0.00014027,3]
[330664340,1719697877612,-500.0,0.00014027,3]
[330664341,1719697877621,-500.0,0.00014027,3]
[330664342,1719697877631,-500.0,0.00014027,3]
[330664343,1719697877640,-565.54,0.00014027,3]
[330664344,1719697877649,-571.48,0.00014027,3]
[330664345,1719697877659,-2913.86,0.00014027,3]
[330664346,1719697877668,-1079.16,0.00014027,3]
[330664347,1719697877678,-636.55,0.00014027,3]
[330664348,1719697877687,-490.12577521,0.00014027,3]
[330664349,1719697877696,-500.0,0.00014027,3]
[330664350,1719697877706,-500.0,0.00014027,3]
[330664351,1719697877715,-727.69,0.00014027,3]
[330664352,1719697877725,-862.68,0.00014027,3]
[330664353,1719697877734,-601.18,0.00014027,3]
[330664354,1719697877743,-917.7,0.00014027,3]
[330664355,1719697877753,-500.0,0.00014027,3]
[330664356,1719697877762,-500.0,0.00014027,3]
[330664357,1719697877772,-3115.39,0.00014027,3]
[330664358,1719697877782,-500.0,0.00014027,3]
[330664359,1719697877791,-500.0,0.00014027,3]
[330664360,1719697877800,-500.0,0.00014027,3]
[330664361,1719697877809,-500.0,0.00014027,3]
[330664362,1719697877819,-854.03,0.00014027,3]
[330664363,1719697877828,-500.0,0.00014027,3]
[330664364,1719697877837,-500.0,0.00014027,3]
[330664365,1719697877849,-1402.94,0.00014027,3]
[330664366,1719697877859,-500.0,0.00014027,3]
[330664367,1719697877870,-1805.2,0.00014027,3]
[330664368,1719697877880,-500.0,0.00014027,3]
[330664369,1719697877890,-951.34,0.00014027,3]
[330664370,1719697877900,-735.2,0.00014027,3]
[330664371,1719697877912,-506.75,0.00014027,3]
[330664372,1719697877922,-1963.77,0.00014027,3]
[330664373,1719697877933,-525.86,0.00014027,3]
[330664374,1719697877943,-500.0,0.00014027,3]
[330664375,1719697877952,-500.0,0.00014027,3]
[330664376,1719697877964,-615.08,0.00014027,3]
[330664377,1719697877976,-500.0,0.00014027,3]
[330664378,1719697877988,-561.52,0.00014027,3]
[330664379,1719697877998,-1012.0,0.00014027,3]
[330664380,1719697878007,-500.0,0.00014027,3]
[330664381,1719697878017,-1036.72,0.00014027,3]
[330664382,1719697878029,-500.0,0.00014027,3]
[330664383,1719697878038,-770.04,0.00014027,3]
[330664384,1719697878050,-948.83,0.00014027,3]
[330664385,1719697878060,-500.0,0.00014027,3]
[330664386,1719697878070,-500.0,0.00014027,3]
[330664387,1719697878080,-810.82,0.00014027,3]
[330664388,1719697878089,-500.0,0.00014027,3]
[330664389,1719697878099,-1251.58,0.00014027,3]
[330664390,1719697878108,-551.6,0.00014027,3]
[330664391,1719697878118,-1029.44,0.00014027,3]
[330664392,1719697878127,-500.0,0.00014027,3]
[330664393,1719697878137,-1033.08,0.00014027,3]
[330664394,1719697878147,-615.75,0.00014027,3]
[330664395,1719697878156,-500.0,0.00014027,3]
[330664396,1719697878166,-800.76,0.00014027,3]
[330664397,1719697878175,-500.0,0.00014027,3]
[330664398,1719697878185,-500.0,0.00014027,3]
[330664399,1719697878195,-1191.78,0.00014027,3]
[330664400,1719697878205,-500.0,0.00014027,3]
[330664401,1719697878215,-500.0,0.00014027,3]
[330664402,1719697878225,-500.0,0.00014027,3]
[330664403,1719697878235,-500.0,0.00014027,3]
[330664404,1719697878245,-1070.15,0.00014027,3]
[330664405,1719697878255,-1330.56,0.00014027,3]
[330664406,1719697878264,-500.0,0.00014027,3]
[330664407,1719697878274,-500.0,0.00014027,3]
[330664408,1719697878285,-500.0,0.00014027,3]
[330664409,1719697878296,-500.0,0.00014027,3]
[330664410,1719697878306,-1210.18,0.00014027,3]
[330664411,1719697878315,-652.67,0.00014027,3]
[330664412,1719697878325,-500.0,0.00014027,3]
[330664413,1719697878334,-593.77,0.00014027,3]
[330664414,1719697878343,-528.49,0.00014027,3]
[330664415,1719697878352,-567.39,0.00014027,3]
[330664416,1719697878362,-1328.61,0.00014027,3]
[330664417,1719697878371,-1523.82,0.00014027,3]
[330664418,1719697878385,-500.0,0.00014027,3]
[330664419,1719697878395,-812.86,0.00014027,3]
[330664420,1719697878404,-500.0,0.00014027,3]
[330664421,1719697878414,-708.61,0.00014027,3]
[330664422,1719697878423,-734.19,0.00014027,3]
[330664423,1719697878432,-1932.72,0.00014027,3]
[330664424,1719697878442,-557.64,0.00014027,3]
[330664425,1719697878451,-1643.79,0.00014027,3]
[330664426,1719697878464,-1505.88,0.00014027,3]
[330664427,1719697878474,-664.71,0.00014027,3]
[330664428,1719697878484,-993.46,0.00014027,3]
[330664429,1719697878493,-1870.08,0.00014027,3]
[330664430,1719697878503,-833.32,0.00014027,3]
[330664431,1719697878512,-2689.06,0.00014027,3]
[330664432,1719697878521,-958.0,0.00014027,3]
[330664433,1719697878531,-500.0,0.00014027,3]
[330664434,1719697878540,-500.0,0.00014027,3]
[330664435,1719697878550,-521.34,0.00014027,3]
[330664436,1719697878560,-577.62,0.00014027,3]
[330664437,1719697878569,-524.0,0.00014027,3]
[330664438,1719697878578,-500.0,0.00014027,3]
[330664439,1719697878587,-500.0,0.00014027,3]
[330664440,1719697878598,-539.93,0.00014027,3]
[330664441,1719697878608,-1281.46,0.00014027,3]
[330664442,1719697878617,-707.54,0.00014027,3]
[330664443,1719697878627,-658.65,0.00014027,3]
[330664444,1719697878637,-1446.63,0.00014027,3]
[330664445,1719697878647,-528.37,0.00014027,3]
[330664446,1719697878657,-882.5,0.00014027,3]
[330664447,1719697878666,-1105.01,0.00014027,3]
[330664448,1719697878675,-511.94068831,0.00014027,3]
[330664449,1719697878685,-1668.36,0.00014027,3]
[330664450,1719697878694,-603.2,0.00014027,3]
[330664451,1719697878704,-500.0,0.00014027,3]
[330664452,1719697878713,-998.81,0.00014027,3]
[330664453,1719697878722,-744.78,0.00014027,3]
[330664454,1719697878731,-500.0,0.00014027,3]
[330664455,1719697878741,-514.21,0.00014027,3]
[330664456,1719697878750,-1284.1,0.00014027,3]
[330664457,1719697878760,-1641.41,0.00014027,3]
[330664458,1719697878770,-1885.59,0.00014027,3]
[330664459,1719697878780,-967.66,0.00014027,3]
[330664460,1719697878791,-1605.96,0.00014027,3]
[330664461,1719697878800,-945.01,0.00014027,3]
[330664462,1719697878809,-500.0,0.00014027,3]
[330664463,1719697878818,-340.02610717,0.00014027,3]
[330664464,1719697878827,-500.0,0.00014027,3]
[330664465,1719697878837,-1263.05,0.00014027,3]
[330664466,1719697878846,-500.0,0.00014027,3]
[330664467,1719697878855,-1428.54,0.00014027,3]
[330664468,1719697878865,-1697.34,0.00014027,3]
[330664469,1719697878874,-500.0,0.00014027,3]
[330664470,1719697878883,-1007.82,0.00014027,3]
[330664471,1719697878892,-764.82,0.00014027,3]
[330664472,1719697878902,-803.08,0.00014027,3]
[330664473,1719697878911,-500.0,0.00014027,3]
[330664474,1719697878921,-1297.68,0.00014027,3]
[330664475,1719697878930,-500.0,0.00014027,3]
[330664476,1719697878939,-1256.4,0.00014027,3]
[330664477,1719697878948,-905.93,0.00014027,3]
[330664478,1719697878957,-500.0,0.00014027,3]
[330664479,1719697878966,-1063.17,0.00014027,3]
[330664480,1719697878976,-1953.67,0.00014027,3]
[330664481,1719697878986,-1317.15,0.00014027,3]
[330664482,1719697878995,-500.0,0.00014027,3]
[330664483,1719697879007,-2152.85,0.00014027,3]
[330664484,1719697879016,-770.65,0.00014027,3]
[330664485,1719697879025,-500.0,0.00014027,3]
[330664486,1719697879035,-500.0,0.00014027,3]
[330664487,1719697879045,-532.41,0.00014027,3]
[330664488,1719697879054,-2409.49,0.00014027,3]
[330664489,1719697879063,-500.0,0.00014027,3]
[330664490,1719697879073,-1020.3,0.00014027,3]
[330664491,1719697879084,-500.0,0.00014027,3]
[330664492,1719697879093,-500.0,0.00014027,3]
[330664493,1719697879102,-500.0,0.00014027,3]
[330664494,1719697879113,-1043.43,0.00014027,3]
[330664495,1719697879122,-500.0,0.00014027,3]
[330664496,1719697879431,-500.0,0.00014027,3]
[330664497,1719697879441,-414.81183358,0.00014027,3]
[330664498,1719697879454,-500.0,0.00014027,3]
[330664499,1719697879463,-1653.0,0.00014027,3]
[330664500,1719697879473,-500.0,0.00014027,3]
[330664501,1719697879482,-500.0,0.00014027,3]
[330664502,1719697879491,-881.29,0.00014027,3]
[330664503,1719697879500,-387.89311243,0.00014027,3]
[330664504,1719697879510,-1135.91,0.00014027,3]
[330664505,1719697879519,-518.14,0.00014027,3]
[330664506,1719697879529,-500.0,0.00014027,3]
[330664507,1719697879538,-500.0,0.00014027,3]
[330664508,1719697879547,-827.18,0.00014027,3]
[330664509,1719697879557,-500.0,0.00014027,3]
[330664510,1719697879566,-1104.85,0.00014027,3]
[330664511,1719697879575,-500.0,0.00014027,3]
[330664512,1719697879585,-1395.85,0.00014027,3]
[330664513,1719697879594,-500.0,0.00014027,3]
[330664514,1719697879604,-1977.24,0.00014027,3]
[330664515,1719697879613,-500.0,0.00014027,3]
[330664516,1719697879623,-500.0,0.00014027,3]
[330664517,1719697879632,-500.0,0.00014027,3]
[330664518,1719697879641,-2002.8,0.00014027,3]
[330664519,1719697879651,-1107.12,0.00014027,3]
[330664520,1719697879661,-1145.37,0.00014027,3]
[330664521,1719697879670,-500.0,0.00014027,3]
[330664522,1719697879679,-1357.05,0.00014027,3]
[330664523,1719697879689,-578.86,0.00014027,3]
[330664524,1719697879698,-500.0,0.00014027,3]
[330664525,1719697879707,-1325.74,0.00014027,3]
[330664526,1719697879717,-612.88,0.00014027,3]
[330664527,1719697879727,-531.3,0.00014027,3]
[330664528,1719697879737,-500.0,0.00014027,3]
[330664529,1719697879746,-1583.18,0.00014027,3]
[330664530,1719697879756,-500.0,0.00014027,3]
[330664531,1719697879769,-1903.53,0.00014027,3]
[330664532,1719697879778,-974.68,0.00014027,3]
[330664533,1719697879788,-1173.45,0.00014027,3]
[330664534,1719697879798,-655.58,0.00014027,3]
[330664535,1719697879808,-1071.66,0.00014027,3]
[330664536,1719697879817,-1289.06,0.00014027,3]
[330664537,1719697879827,-1588.5,0.00014027,3]
[330664538,1719697879836,-500.0,0.00014027,3]
[330664539,1719697879846,-500.0,0.00014027,3]
[330664540,1719697879855,-500.0,0.00014027,3]
[330664541,1719697879865,-698.01,0.00014027,3]
[330664542,1719697879874,-500.0,0.00014027,3]
[330664543,1719697879883,-721.94,0.00014027,3]
[330664544,1719697879892,-1731.8,0.00014027,3]
[330664545,1719697879902,-1201.53,0.00014027,3]
[330664546,1719697879912,-500.0,0.00014027,3]
[330664547,1719697879922,-1285.08,0.00014027,3]
[330664548,1719697879931,-500.0,0.00014027,3]
[330664549,1719697879942,-1686.09,0.00014027,3]
[330664550,1719697879953,-500.0,0.00014027,3]
[330664551,1719697879963,-500.0,0.00014027,3]
[330664552,1719697879973,-45646.3,0.00014027,3]
[330664553,1719697879983,-500.0,0.00014027,3]
[330664554,1719697879994,-420.45534603,0.00014027,3]
[330664555,1719697880003,-1850.97,0.00014027,3]
[330664556,1719697880013,-883.33,0.00014027,3]
[330664557,1719697880022,-1153.77,0.00014027,3]
[330664558,1719697880032,-500.0,0.00014027,3]
[330664559,1719697880042,-740.63,0.00014027,3]
[330664560,1719697880052,-500.0,0.00014027,3]
[330664561,1719697880061,-1824.49,0.00014027,3]
[330664562,1719697880070,-500.0,0.00014027,3]
[330664563,1719697880080,-952.13,0.00014027,3]
[330664564,1719697880089,-1348.05,0.00014027,3]
[330664565,1719697880099,-1236.2,0.00014027,3]
[330664566,1719697880110,-1015.54,0.00014027,3]
[330664567,1719697880119,-3244.88,0.00014027,3]
[330664568,1719697880128,-617.96927963,0.00014027,3]
[330664569,1719697880138,-1365.55,0.00014027,3]
[330664570,1719697880147,-500.0,0.00014027,3]
[330664571,1719697880156,-703.01,0.00014027,3]
[330664572,1719697880166,-500.0,0.00014027,3]
[330664573,1719697880176,-500.0,0.00014027,3]
[330664574,1719697880186,-5853.89,0.00014027,3]
[330664575,1719697880196,-933.24,0.00014027,3]
[330664576,1719697880205,-708.25,0.00014027,2]
[330664577,1719697880216,-500.0,0.00014027,3]
[330664578,1719697880226,-1074.21,0.00014027,3]
[330664579,1719697880235,-585.7,0.00014027,3]
[330664580,1719697880246,-500.0,0.00014027,3]
[330664581,1719697880255,-1013.7,0.00014027,3]
[330664582,1719697880265,-775.91,0.00014027,3]
[330664583,1719697880274,-500.0,0.00014027,3]
[330664584,1719697880284,-1851.76,0.00014027,3]
[330664585,1719697880294,-645.47,0.00014027,3]
[330664586,1719697880303,-2091.76,0.00014027,3]
[330664587,1719697880312,-500.0,0.00014027,3]
[330664588,1719697880322,-1482.82,0.00014027,3]
[330664589,1719697880331,-549.88,0.00014027,3]
[330664590,1719697880341,-500.0,0.00014027,3]
[330664591,1719697880352,-1075.72,0.00014027,3]
[330664592,1719697880362,-500.0,0.00014027,3]
[330664593,1719697880376,-500.0,0.00014027,3]
[330664594,1719697880393,-500.0,0.00014027,3]
[330664595,1719697880404,-500.0,0.00014027,3]
[330664596,1719697880414,-1439.6,0.00014027,3]
[330664597,1719697880427,-500.0,0.00014027,3]
[330664598,1719697880436,-966.29,0.00014027,3]
[330664599,1719697880445,-1322.17,0.00014027,3]
[330664600,1719697880454,-1867.92,0.00014027,3]
[330664601,1719697880466,-500.0,0.00014027,3]
[330664602,1719697880476,-500.0,0.00014027,3]
[330664603,1719697880485,-742.11,0.00014027,3]
[330664604,1719697880495,-1676.42,0.00014027,3]
[330664605,1719697880505,-860.95,0.00014027,3]
[330664606,1719697880515,-500.0,0.00014027,3]
[330664607,1719697880525,-500.0,0.00014027,3]
[330664608,1719697880534,-625.47,0.00014027,3]
[330664609,1719697880543,-684.56,0.00014027,3]
[330664610,1719697880553,-500.0,0.00014027,3]
[330664611,1719697880562,-1574.73,0.00014027,3]
[330664612,1719697880571,-733.26,0.00014027,3]
[330664613,1719697880581,-500.0,0.00014027,3]
[330664614,1719697880591,-500.0,0.00014027,3]
[330664615,1719697880602,-837.81,0.00014027,3]
[330664616,1719697880612,-500.0,0.00014027,3]
[330664617,1719697880621,-539.84368411,0.00014027,3]
[330664618,1719697880630,-5685.01,0.00014027,3]
[330664619,1719697880640,-500.0,0.00014027,3]
[330664620,1719697880650,-500.0,0.00014027,3]
[330664621,1719697880660,-500.0,0.00014027,3]
[330664622,1719697880669,-505.28,0.00014027,3]
[330664623,1719697880679,-364.3963509,0.00014027,3]
[330664624,1719697880688,-390.06508119,0.00014027,3]
[330664625,1719697880697,-549.68,0.00014027,3]
[330664626,1719697880707,-500.0,0.00014027,3]
[330664627,1719697880716,-1313.08,0.00014027,3]
[330664628,1719697880725,-1018.92,0.00014027,3]
[330664629,1719697880734,-500.0,0.00014027,3]
[330664630,1719697880744,-500.0,0.00014027,3]
[330664631,1719697880754,-1686.75,0.00014027,3]
[330664632,1719697880763,-909.13,0.00014027,3]
[330664633,1719697880772,-500.0,0.00014027,3]
[330664634,1719697880782,-500.0,0.00014027,3]
[330664635,1719697880791,-500.0,0.00014027,3]
[330664636,1719697880801,-1118.48,0.00014027,3]
[330664637,1719697880810,-1145.27,0.00014027,3]
[330664638,1719697880819,-1391.8,0.00014027,3]
[330664639,1719697880828,-500.0,0.00014027,3]
[330664640,1719697880838,-844.99,0.00014027,3]
[330664641,1719697880848,-871.12,0.00014027,3]
[330664642,1719697880858,-5131.41,0.00014027,3]
[330664643,1719697880867,-2484.8,0.00014027,3]
[330664644,1719697880876,-500.0,0.00014027,3]
[330664645,1719697880885,-1085.2,0.00014027,3]
[330664646,1719697880895,-500.0,0.00014027,3]
[330664647,1719697880904,-500.0,0.00014027,3]
[330664648,1719697880913,-1427.19,0.00014027,3]
[330664649,1719697880923,-500.0,0.00014027,3]
[330664650,1719697880932,-2549.66,0.00014027,3]
[330664651,1719697880943,-500.0,0.00014027,3]
[330664652,1719697880955,-500.0,0.00014027,3]
[330664653,1719697880964,-695.57,0.00014027,3]
[330664654,1719697880974,-1016.52,0.00014027,3]
[330664655,1719697880983,-500.0,0.00014027,3]
[330664656,1719697880992,-625.21538417,0.00014027,3]
[330664657,1719697881002,-500.0,0.00014027,3]
[330664658,1719697881011,-533.37,0.00014027,3]
[330664659,1719697881021,-930.48,0.00014027,3]
[330664660,1719697881030,-1893.42,0.00014027,3]
[330664661,1719697881038,-500.0,0.00014027,3]
[330664662,1719697881047,-2382.38,0.00014027,3]
[330664663,1719697881056,-1984.05,0.00014027,3]
[330664664,1719697881065,-613.33,0.00014027,3]
[330664665,1719697881074,-561.25,0.00014027,3]
[330664666,1719697881083,-500.0,0.00014027,3]
[330664667,1719697881092,-500.0,0.00014027,3]
[330664668,1719697881102,-1247.74,0.00014027,3]
[330664669,1719697881113,-1215.25,0.00014027,3]
[330664670,1719697881124,-2075.91,0.00014027,3]
[330664671,1719697881135,-500.0,0.00014027,3]
[330664672,1719697881145,-666.38,0.00014027,3]
[330664673,1719697881154,-500.0,0.00014027,3]
[330664674,1719697881165,-340.13225063,0.00014027,3]
[330664675,1719697881174,-1254.35,0.00014027,3]
[330664676,1719697881183,-1690.88,0.00014027,3]
[330664677,1719697881193,-3206.93,0.00014027,3]
[330664678,1719697881204,-1508.98,0.00014027,3]
[330664679,1719697881215,-672.66,0.00014027,3]
[330664680,1719697881225,-500.0,0.00014027,3]
[330664681,1719697881236,-500.0,0.00014027,3]
[330664682,1719697881247,-854.38,0.00014027,3]
[330664683,1719697881257,-1295.44,0.00014027,3]
[330664684,1719697881266,-1061.13,0.00014027,3]
[330664685,1719697881275,-1169.05,0.00014027,3]
[330664686,1719697881285,-911.66,0.00014027,3]
[330664687,1719697881294,-500.0,0.00014027,3]
[330664688,1719697881303,-500.0,0.00014027,3]
[330664689,1719697881312,-844.35,0.00014027,3]
[330664690,1719697881322,-658.44,0.00014027,3]
[330664691,1719697881331,-500.0,0.00014027,3]
[330664692,1719697881340,-597.33,0.00014027,3]
[330664693,1719697881349,-873.63,0.00014027,3]
[330664694,1719697881358,-500.0,0.00014027,3]
[330664695,1719697881368,-918.03,0.00014027,3]
[330664696,1719697881381,-500.0,0.00014027,3]
[330664697,1719697881391,-1884.45,0.00014027,3]
[330664698,1719697881400,-500.0,0.00014027,3]
[330664699,1719697881409,-772.5,0.00014027,3]
[330664700,1719697881419,-3902.11,0.00014027,3]
[330664701,1719697881429,-1870.97,0.00014027,3]
[330664702,1719697881440,-1527.8,0.00014027,3]
[330664703,1719697881449,-2299.96,0.00014027,3]
[330664704,1719697881460,-2490.2,0.00014027,3]
[330664705,1719697881470,-846.22,0.00014027,3]